bitfinex/quotes_ETHUSD_20220212
["timestamp","ask_amount","ask_price","bid_price","bid_amount"]
[1644707904980,4.95821828,2917.6,2916.0,1.9246]
[1644707905177,0.86194026,2917.5,2916.3,0.04625786]
[1644707905379,2.32015854,2917.5,2916.4,0.495]
[1644707905578,0.86194026,2917.5,2916.4,0.9663]
[1644707906178,0.86194026,2917.5,2916.4,0.1713]
[1644707906179,4.89412551,2917.4,2916.4,0.1713]
[1644707906380,1.45827851,2917.3,2916.2,1.88526]
[1644707906581,1.45827851,2917.3,2916.1,1.5194]
[1644707907384,1.45827851,2917.3,2916.1,2.5194]
[1644707907584,1.17246544,2917.0,2916.1,2.5194]
[1644707907783,1.17246544,2917.0,2916.2,0.1713]
[1644707908626,0.01023885,2916.7,2916.2,0.1713]
[1644707909726,1.17246544,2917.0,2916.2,0.1713]
[1644707909926,0.01023906,2916.6,2916.2,0.1713]
[1644707910927,1.17246544,2917.0,2916.2,0.1713]
[1644707911128,0.01023913,2916.5,2916.2,0.1713]
[1644707911329,0.01023913,2916.5,2916.1,0.1713]
[1644707911985,1.17246544,2917.0,2916.1,0.1713]
[1644707912380,0.01023926,2916.4,2916.1,0.1713]
[1644707913184,1.17246544,2917.0,2916.1,0.1713]
[1644707913382,1.17246544,2917.0,2916.0,1.2663]
[1644707913583,0.01023933,2916.4,2916.0,1.2663]
[1644707914383,1.17246544,2917.0,2916.0,1.2663]
[1644707914583,0.1713,2917.5,2916.0,1.2663]
[1644707914784,0.0102394,2916.3,2916.0,1.2663]
[1644707915727,1.06148464,2917.2,2916.0,1.2663]
[1644707915927,0.01023947,2916.3,2916.0,1.2663]
[1644707916627,0.01023947,2916.3,2916.2,0.11367701]
[1644707916827,1.2065,2917.7,2916.2,0.60867701]
[1644707917034,3.52905541,2918.2,2916.5,0.85699]
[1644707917233,1.45815768,2918.1,2916.6,0.495]
[1644707917433,1.45815768,2918.1,2916.7,0.1713]
[1644707917633,1.45815768,2918.1,2916.7,0.6663]
[1644707917832,1.45815768,2918.1,2916.7,0.9663]
[1644707918034,0.88642402,2917.8,2916.7,1.99981771]
[1644707918236,0.01023776,2917.5,2916.7,2.99981771]
[1644707918434,0.01023776,2917.5,2916.7,1.9663]
[1644707918633,0.01023776,2917.5,2916.7,2.2663]
[1644707919235,0.88642402,2917.8,2916.7,1.9663]
[1644707919480,1.10312719,2917.2,2916.7,0.1713]
[1644707920476,1.09288902,2917.2,2916.7,0.1713]
[1644707920676,0.01023837,2917.1,2916.7,0.1713]
[1644707921576,1.09288902,2917.2,2916.7,0.1713]
[1644707921778,1.09288902,2917.2,2916.2,2.06416]
[1644707921979,0.01023844,2917.0,2916.3,0.1713]
[1644707922778,1.09288902,2917.2,2916.3,0.1713]
[1644707923227,0.01023878,2916.8,2916.3,0.1713]
[1644707924129,1.09288902,2917.2,2916.3,0.1713]
[1644707924429,0.01023892,2916.7,2916.2,0.1713]
[1644707925032,0.00903683,2916.7,2916.2,0.1713]
[1644707925229,1.58788902,2917.2,2916.2,0.1713]
[1644707925430,0.1713,2917.0,2916.2,0.1713]
[1644707925632,0.495,2917.0,2916.2,0.1713]
[1644707926031,1.495,2917.0,2916.2,0.1713]
[1644707926228,0.795,2917.0,2916.2,0.1713]
[1644707926432,1.795,2917.0,2916.2,0.1713]
[1644707926628,1.45855603,2916.9,2916.2,0.1713]
[1644707927284,3.43396226,2916.8,2916.2,0.1713]
[1644707927481,3.43396226,2916.8,2915.9,3.6854]
[1644707927881,0.01024545,2916.6,2915.9,3.6854]
[1644707928482,0.01024545,2916.6,2915.9,3.9854]
[1644707928684,0.01024545,2916.6,2915.9,3.8567]
[1644707928882,0.495,2917.0,2915.9,4.1567]
[1644707929084,0.6663,2917.0,2915.9,3.9854]
[1644707929284,0.01024523,2916.6,2915.9,3.9854]
[1644707930085,3.38479899,2917.1,2915.9,3.9854]
[1644707930385,3.38479899,2917.1,2915.9,3.6854]
[1644707930386,1.14518536,2916.3,2915.9,3.6854]
[1644707930588,0.01024523,2916.6,2915.9,3.6854]
[1644707931329,3.59207317,2916.9,2915.9,3.6854]
[1644707931528,0.01024523,2916.6,2915.9,3.6854]
[1644707931730,1.18945643,2916.5,2915.9,3.6854]
[1644707931928,1.18945643,2916.5,2915.8,0.3]
[1644707932331,1.18945643,2916.5,2915.7,1.01024837]
[1644707932533,1.18945643,2916.5,2915.7,1.3]
[1644707932732,1.18945643,2916.5,2915.7,1.31024816]
[1644707933733,1.18945643,2916.5,2915.7,1.3]
[1644707933935,1.18945643,2916.5,2915.7,1.31024805]
[1644707934980,1.18945643,2916.5,2915.7,1.3]
[1644707935179,3.44908982,2916.4,2915.7,0.01024805]
[1644707935380,3.94408982,2916.4,2915.7,0.01024805]
[1644707935580,4.5,2916.3,2915.7,0.01024805]
[1644707935779,1.95379895,2916.2,2915.7,0.01024805]
[1644707935978,1.45879895,2916.1,2915.7,0.01024805]
[1644707936178,1.45879895,2916.1,2915.6,0.00300203]
[1644707936179,0.495,2916.0,2915.6,0.00300203]
[1644707936378,0.495,2916.0,2915.7,0.01024773]
[1644707936379,1.45879895,2915.9,2915.7,0.01024773]
[1644707936580,0.495,2915.8,2915.7,0.01024773]
[1644707936780,0.02049546,2915.6,2915.2,0.04099703]
[1644707937381,0.02049546,2915.6,2914.9,0.00300203]
[1644707937382,1.10325523,2915.1,2914.9,0.00300203]
[1644707937582,3.33764924,2915.0,2914.5,0.17450203]
[1644707937782,1.10325523,2915.1,2914.5,0.00300203]
[1644707937983,1.10325523,2915.1,2914.6,0.1715]
[1644707938825,1.10325523,2915.1,2914.7,0.00400374]
[1644707939827,1.10325523,2915.1,2914.5,0.00300203]
[1644707940029,1.10325523,2915.1,2914.8,0.01024867]
[1644707940230,4.4355117,2915.5,2914.8,0.01024867]
[1644707940828,4.4355117,2915.5,2914.5,0.00300203]
[1644707941229,4.4355117,2915.5,2915.0,0.01024833]
[1644707941433,1.0301933,2915.4,2915.0,0.01024833]
[1644707941630,3.38975464,2915.3,2915.0,0.01024833]
[1644707942079,3.38975464,2915.3,2914.5,0.00300203]
[1644707942284,3.38975464,2915.3,2915.0,0.01024833]
[1644707942478,1.0301933,2915.4,2915.0,0.01024833]
[1644707943281,1.0301933,2915.4,2914.7,0.00300203]
[1644707943482,1.0301933,2915.4,2914.3,0.17450203]
[1644707943685,1.0301933,2915.4,2915.1,0.01024826]
[1644707943686,3.45524373,2915.3,2915.1,0.01024826]
[1644707943883,0.3,2915.5,2915.1,0.01024826]
[1644707944183,2.15719546,2915.6,2915.1,0.01024826]
[1644707944184,1.15719546,2915.6,2915.1,0.01024826]
[1644707944582,1.15719546,2915.6,2914.8,0.00300203]
[1644707944583,0.02049546,2915.6,2914.8,0.00300203]
[1644707944785,0.02049546,2915.6,2915.2,0.01024805]
[1644707945725,0.83891057,2915.8,2914.9,1.1]
[1644707945726,0.80940603,2915.8,2914.9,1.1]
[1644707945928,0.04041513,2916.0,2915.0,0.00300203]
[1644707946226,0.05066037,2916.0,2915.3,0.01024799]
[1644707946626,0.05066037,2916.0,2915.3,0.18154799]
[1644707947032,1.0585,2916.1,2915.4,0.00300203]
[1644707947232,1.0585,2916.1,2915.5,0.18154764]
[1644707947233,0.01024577,2916.0,2915.5,0.18154764]
[1644707947538,0.01024577,2916.0,2915.5,0.18454967]
[1644707947732,0.01024577,2916.0,2915.5,0.01324967]
[1644707948131,2.08368114,2916.1,2915.5,0.00300203]
[1644707948531,2.08368114,2916.1,2915.6,0.00400134]
[1644707949332,1.02518114,2916.1,2915.5,0.00300203]
[1644707949578,2.4185,2916.6,2915.5,0.00300203]
[1644707949579,2.4185,2916.6,2915.6,0.00400134]
[1644707950580,0.1713,2916.8,2915.6,0.85731]
[1644707950581,1.16333236,2916.5,2915.6,0.85731]
[1644707950784,1.16333236,2916.5,2915.6,1.16131134]
[1644707951381,1.16333236,2916.5,2915.6,1.65631134]
[1644707951583,3.37130624,2917.1,2915.6,1.65631134]
[1644707951782,1.4585738,2917.0,2915.7,0.1713]
[1644707951981,0.01025252,2916.2,2915.7,0.1713]
[1644707952983,3.51864261,2917.1,2915.7,0.1713]
[1644707952984,3.81864261,2917.1,2915.7,0.1713]
[1644707953230,0.01025266,2916.1,2915.7,0.1713]
[1644707953831,0.01025266,2916.1,2915.6,1.66256456]
[1644707954133,0.85720881,2916.3,2915.6,0.3]
[1644707954533,0.01025265,2916.0,2915.6,0.01325638]
[1644707955337,0.85720881,2916.3,2915.6,0.00300203]
[1644707955536,3.31839622,2916.2,2915.4,0.00300203]
[1644707955736,0.01025254,2916.0,2915.6,0.01025424]
[1644707956735,0.85720881,2916.3,2915.4,0.00300203]
[1644707956984,1.01540887,2915.8,2915.6,0.01025424]
[1644707957786,1.01540887,2915.8,2915.2,0.00300203]
[1644707957986,0.96540887,2915.8,2915.6,0.01025402]
[1644707958186,0.96540887,2915.8,2915.1,0.43455605]
[1644707958485,0.96540887,2915.8,2915.2,0.00302926]
[1644707958686,3.36684168,2915.7,2915.2,0.00302926]
[1644707958884,0.96540887,2915.8,2915.2,0.00302926]
[1644707959083,0.96540887,2915.8,2914.9,0.25]
[1644707959084,3.30356015,2915.7,2915.0,0.00302926]
[1644707959284,0.96540887,2915.8,2915.0,0.00302926]
[1644707959485,0.97412038,2915.3,2914.7,1.00302926]
[1644707959685,0.97412038,2915.3,2914.8,0.00302926]
[1644707961627,0.97412038,2915.3,2914.9,0.01025491]
[1644707962635,0.97412038,2915.3,2914.8,0.00302926]
[1644707962834,0.97412038,2915.3,2915.0,0.01025485]
[1644707963835,0.97412038,2915.3,2914.9,0.1715]
[1644707964037,0.97412038,2915.3,2915.0,0.01025478]
[1644707964883,0.97412038,2915.3,2914.8,0.00302926]
[1644707965284,0.97412038,2915.3,2915.0,0.01025478]
[1644707965484,3.34438738,2915.8,2915.0,0.01025478]
[1644707966284,3.34438738,2915.8,2914.8,0.00302926]
[1644707966285,3.33413539,2915.8,2914.8,0.00302926]
[1644707966484,0.93819292,2915.5,2915.3,0.01025444]
[1644707967289,0.93819292,2915.5,2914.8,0.00302926]
[1644707967490,0.93819292,2915.5,2914.9,0.1715]
[1644707967689,0.93819292,2915.5,2915.3,0.01025444]
[1644707968529,0.93819292,2915.5,2914.9,0.00302926]
[1644707968727,0.93819292,2915.5,2914.8,0.1715]
[1644707968927,0.93819292,2915.5,2915.3,0.01025444]
[1644707969729,0.93819292,2915.5,2914.8,0.17452926]
[1644707970128,0.93819292,2915.5,2915.3,0.01025444]
[1644707970326,3.27819923,2915.8,2915.3,0.01025444]
[1644707970327,0.01025253,2915.8,2915.3,0.01025444]
[1644707970930,3.32384868,2915.8,2915.1,0.00302926]
[1644707971133,1.45903349,2915.7,2914.9,0.00302926]
[1644707971328,1.08795946,2915.5,2915.4,0.01025423]
[1644707971528,0.01025285,2915.8,2915.4,0.01025423]
[1644707971729,1.459049,2915.7,2915.4,0.01025423]
[1644707972185,1.459049,2915.7,2914.9,0.00302926]
[1644707972387,0.01025285,2915.8,2915.4,0.01025423]
[1644707972684,2.30731817,2915.7,2915.4,0.01025423]
[1644707973084,0.84828831,2915.7,2915.4,0.01025423]
[1644707973285,0.84828831,2915.7,2914.9,0.00302926]
[1644707973486,0.84828831,2915.7,2915.0,0.1715]
[1644707973690,0.84828831,2915.7,2915.4,0.01025423]
[1644707974489,3.34970039,2915.6,2915.4,0.01025423]
[1644707974688,3.34970039,2915.6,2914.8,0.00302926]
[1644707974891,1.45911653,2915.5,2915.4,0.01025423]
[1644707975189,0.84828831,2915.7,2915.4,0.01025423]
[1644707975828,3.29672859,2915.8,2914.8,0.17452926]
[1644707976027,1.45901466,2915.7,2915.4,0.01025423]
[1644707977034,1.45901466,2915.7,2914.8,0.17452926]
[1644707977233,1.45901466,2915.7,2915.4,0.01025423]
[1644707977533,1.75901466,2915.7,2915.4,0.01025423]
[1644707977733,1.45901466,2915.6,2915.4,0.01025423]
[1644707978136,1.45901466,2915.6,2914.8,0.00302926]
[1644707978137,0.03070845,2915.3,2914.8,0.00302926]
[1644707978338,1.45922922,2915.2,2914.8,0.00302926]
[1644707978534,0.495,2915.1,2914.7,7.5240553]
[1644707978739,1.02585789,2914.9,2914.7,7.5240553]
[1644707978936,1.02585789,2914.9,2914.7,7.52102604]
[1644707979335,1.02585789,2914.9,2914.7,7.48]
[1644707980788,1.02585789,2914.9,2914.7,7.49025525]
[1644707980988,1.32585789,2914.9,2914.7,0.01025525]
[1644707981189,1.4594202,2914.8,2914.7,0.01025525]
[1644707981787,1.02585789,2914.9,2914.3,0.17452926]
[1644707981988,1.04028478,2914.4,2914.3,0.17452926]
[1644707982190,1.04028478,2914.4,2914.2,7.52102745]
[1644707982592,4.54495805,2915.0,2914.2,7.52102745]
[1644707982789,1.3,2915.0,2914.3,0.00302926]
[1644707982990,4.55295398,2915.0,2914.3,0.00302926]
[1644707983228,3.27937201,2915.0,2914.5,0.01025553]
[1644707983431,3.27662511,2915.0,2914.5,0.01025553]
[1644707983730,0.9876084,2914.6,2914.3,0.00304377]
[1644707983934,0.9876084,2914.6,2914.0,0.04102827]
[1644707984231,0.9876084,2914.6,2914.1,0.1715]
[1644707984833,0.9876084,2914.6,2914.2,0.01458277]
[1644707985634,0.9876084,2914.6,2914.3,0.00398128]
[1644707985836,3.30317371,2914.5,2914.3,0.00398128]
[1644707986135,0.9876084,2914.6,2914.3,0.00398128]
[1644707986537,0.9876084,2914.6,2914.2,0.01458277]
[1644707986987,0.9876084,2914.6,2914.3,0.01025573]
[1644707987383,3.33471908,2914.5,2914.3,0.01025573]
[1644707987783,1.0,2914.4,2914.2,0.01458277]
[1644707987983,3.32795742,2914.3,2914.2,0.01458277]
[1644707988186,3.43001161,2914.5,2914.3,0.0102558]
[1644707988584,1.2876084,2914.6,2914.3,0.0102558]
[1644707988783,3.3045335,2914.5,2914.3,0.0102558]
[1644707988984,3.31237704,2914.4,2914.2,0.01458277]
[1644707989187,3.31237704,2914.4,2914.3,0.01025573]
[1644707989384,2.2876084,2914.6,2914.3,0.01025573]
[1644707989884,0.01025295,2915.1,2914.3,0.01025573]
[1644707990285,0.03070845,2915.3,2914.4,0.1715]
[1644707990486,0.03070845,2915.3,2914.5,0.00304377]
[1644707990487,0.01025295,2915.1,2914.5,0.00304377]
[1644707990730,0.01025295,2915.1,2914.4,0.1715]
[1644707991132,0.01025295,2915.1,2914.5,0.00304377]
[1644707991332,0.98541315,2915.2,2914.5,0.00304377]
[1644707991537,0.03070845,2915.3,2914.5,0.00304377]
[1644707991736,0.01025359,2915.1,2914.6,0.6665]
[1644707991936,0.01025359,2915.1,2914.6,0.66954377]
[1644707992137,0.01025359,2915.1,2914.6,0.96954377]
[1644707992635,0.03070845,2915.3,2914.6,1.27088898]
[1644707992838,0.01025381,2915.1,2914.6,1.27088898]
[1644707993736,0.03070845,2915.3,2914.6,1.27088898]
[1644707993938,0.03070845,2915.3,2914.6,0.79804377]
[1644707994137,0.01025381,2915.1,2914.6,0.79804377]
[1644707994980,0.03070845,2915.3,2914.6,0.79804377]
[1644707995180,0.03070845,2915.3,2914.7,0.1715]
[1644707995381,0.03070845,2915.3,2914.7,0.66954377]
[1644707995382,0.01025381,2915.1,2914.7,0.66954377]
[1644707995881,0.01025381,2915.1,2914.7,0.49804377]
[1644707996279,0.03070845,2915.3,2914.7,0.49804377]
[1644707996481,0.01025392,2915.1,2914.7,0.49804377]
[1644707997487,0.03070845,2915.3,2914.7,0.49804377]
[1644707997685,0.01025392,2915.1,2914.7,0.49804377]
[1644707997885,0.01025392,2915.1,2914.7,0.79804377]
[1644707998084,0.01025392,2915.1,2914.7,0.49804377]
[1644707998535,0.03070845,2915.3,2914.7,0.495]
[1644707998934,0.03070845,2915.3,2914.7,0.66954377]
[1644707998935,0.01025392,2915.1,2914.7,0.66954377]
[1644707999136,0.01025392,2915.1,2914.7,0.495]
[1644707999437,0.01025392,2915.1,2914.8,0.1715]
[1644707999835,0.03070845,2915.3,2914.8,0.1715]
[1644708000035,0.01025403,2915.1,2914.8,0.17454377]
[1644708000236,0.01025403,2915.1,2914.8,0.1715]
[1644708001138,0.03070845,2915.3,2914.8,0.1715]
[1644708001341,0.01025403,2915.1,2914.8,0.17454377]
[1644708001538,0.01025403,2915.1,2914.8,0.1715]
[1644708002184,0.03070845,2915.3,2914.8,0.1715]
[1644708002386,0.01025403,2915.1,2914.8,0.17454377]
[1644708002584,0.01025403,2915.1,2914.8,0.1715]
[1644708003384,0.03070845,2915.3,2914.8,0.1715]
[1644708003585,0.01025403,2915.1,2914.8,0.00304377]
[1644708003786,0.01025403,2915.1,2914.6,0.00304377]
[1644708004589,0.03070845,2915.3,2914.6,0.00304377]
[1644708004984,0.01025381,2915.1,2914.6,0.00304377]
[1644708005834,0.03070845,2915.3,2914.6,0.00304377]
[1644708006032,0.01025381,2915.1,2914.6,0.00304377]
[1644708006634,0.01025381,2915.1,2914.7,0.1715]
[1644708006836,0.01025381,2915.1,2914.4,0.01025642]
[1644708006837,2.33358062,2915.0,2914.4,0.01330019]
[1644708007041,5.25438726,2914.9,2914.4,0.00304377]
[1644708007243,1.45940149,2914.8,2914.4,0.00397989]
[1644708007439,3.63216783,2914.7,2914.4,0.00397989]
[1644708007639,1.45940149,2914.6,2914.4,0.00397989]
[1644708007839,3.54262516,2914.5,2914.4,0.00397989]
[1644708008039,4.56247906,2914.5,2914.4,0.00397989]
[1644708008240,6.02188055,2914.5,2914.1,0.00304377]
[1644708008438,6.02188055,2914.5,2914.4,0.00397989]
[1644708008439,4.56247906,2914.5,2914.4,0.00397989]
[1644708008742,1.01868802,2914.5,2914.4,0.00397989]
[1644708009341,1.01868802,2914.5,2913.7,0.00304377]
[1644708009786,0.96640202,2914.0,2913.7,0.00304377]
[1644708009984,0.96640202,2914.0,2913.6,7.99255824]
[1644708010682,0.96640202,2914.0,2913.6,7.9515]
[1644708010882,0.96640202,2914.0,2913.7,0.01026306]
[1644708011081,0.96640202,2914.0,2913.8,0.1715]
[1644708011683,3.44678049,2914.6,2913.8,0.1715]
[1644708011881,3.44678049,2914.6,2913.9,0.00304377]
[1644708012289,1.2103,2914.7,2913.9,0.00304377]
[1644708012490,1.45972945,2914.6,2913.9,0.00304377]
[1644708012887,2.45972945,2914.6,2913.9,0.00304377]
[1644708013087,1.45972945,2914.5,2913.9,0.00304377]
[1644708013332,0.8848627,2914.4,2914.1,0.00398082]
[1644708013531,1.45972945,2914.3,2914.1,0.00398082]
[1644708014231,1.08210125,2913.9,2913.6,0.00304377]
[1644708014432,1.08210125,2913.9,2913.6,0.04108431]
[1644708015434,1.08210125,2913.9,2913.5,0.1716]
[1644708015435,1.08210125,2913.9,2913.5,0.17464377]
[1644708015633,1.08210125,2913.9,2913.6,0.00971497]
[1644708015834,4.74503106,2914.3,2913.6,0.00971497]
[1644708016037,1.2244,2914.3,2913.6,0.00971497]
[1644708016235,3.2943989,2914.2,2913.6,0.00971497]
[1644708016635,3.2943989,2914.2,2913.3,0.1715]
[1644708016836,3.2943989,2914.2,2913.8,0.00971477]
[1644708017290,1.2244,2914.3,2913.8,0.00971477]
[1644708017489,3.36171978,2914.2,2913.8,0.00971477]
[1644708017689,3.30238212,2914.2,2913.8,0.00971477]
[1644708017888,4.35157307,2914.2,2913.4,0.00304377]
[1644708018089,4.35157307,2914.2,2913.9,0.00971463]
[1644708018387,1.04919095,2914.2,2913.9,0.00971463]
[1644708018787,4.46735219,2914.2,2913.9,0.00971463]
[1644708018990,4.46735219,2914.2,2913.4,0.00304377]
[1644708019188,0.94343211,2913.7,2913.5,0.03886409]
[1644708020291,3.41816124,2914.2,2913.4,0.00304377]
[1644708020592,3.38396676,2914.2,2913.5,0.00964946]
[1644708021235,0.94518427,2913.9,2913.5,0.00964946]
[1644708021435,3.47728825,2914.0,2913.4,0.1715]
[1644708021635,3.70058552,2914.2,2913.5,0.00304377]
[1644708021836,3.70058552,2914.2,2913.7,0.00964912]
[1644708021837,1.45987724,2914.1,2913.7,0.00964912]
[1644708022039,3.38853135,2914.0,2913.7,0.00964912]
[1644708022440,1.01691114,2913.8,2913.7,0.00964912]
[1644708022643,1.01691114,2913.8,2913.5,0.00304377]
[1644708022644,4.43315583,2913.8,2913.5,0.00304377]
[1644708022843,4.43315583,2913.8,2913.7,0.00964912]
[1644708023041,1.1,2913.7,2913.3,0.00129516]
[1644708023240,1.1,2913.7,2913.1,0.00129516]
[1644708023241,3.40056151,2913.6,2913.1,0.00129516]
[1644708024043,1.63176534,2913.5,2912.8,0.25]
[1644708024244,1.63176534,2913.5,2912.9,0.00303563]
[1644708024245,4.96025309,2913.4,2912.9,0.00303563]
[1644708024504,3.22685309,2913.3,2912.1,0.25]
[1644708024694,3.22685309,2913.3,2911.8,7.826]
[1644708024695,4.96025309,2913.2,2911.9,0.1716]
[1644708024895,4.96025309,2913.2,2911.8,7.826]
[1644708024896,3.12685309,2913.1,2911.8,3.9185]
[1644708025095,1.46025309,2913.0,2911.8,3.9185]
[1644708025299,1.27542722,2912.9,2911.7,7.48]
[1644708025498,3.995,2912.8,2911.7,7.48]
[1644708025698,0.1716,2912.7,2911.7,7.48]
[1644708025902,5.495,2912.6,2911.4,0.25]
[1644708026098,3.6716,2912.5,2911.4,0.25]
[1644708026299,0.495,2912.4,2911.4,0.25]
[1644708026501,4.33940755,2912.3,2911.9,0.00397685]
[1644708026700,5.13440755,2912.3,2911.9,0.00397685]
[1644708026903,1.0,2912.2,2911.9,0.00397685]
[1644708027100,3.71843615,2912.1,2911.9,0.00397685]
[1644708027300,3.71843615,2912.1,2911.4,0.26590977]
[1644708027301,2.595,2912.0,2911.4,0.01200977]
[1644708027503,0.01193054,2911.8,2911.0,0.25]
[1644708027701,0.6666,2911.7,2910.9,0.1716]
[1644708027903,3.5,2911.6,2911.4,7.92e-05]
[1644708028101,0.495,2911.5,2911.4,7.92e-05]
[1644708028341,0.795,2911.5,2911.4,7.92e-05]
[1644708028537,0.9666,2911.5,2911.4,7.92e-05]
[1644708028738,0.9666,2911.5,2910.9,0.1716]
[1644708028939,0.87476846,2911.0,2910.3,0.25]
[1644708029141,0.495,2911.2,2910.2,0.1716]
[1644708029345,4.51193054,2911.8,2910.2,0.1716]
[1644708029346,0.01193054,2911.8,2910.2,2.62049506]
[1644708029539,3.51193054,2911.8,2910.2,1.3216]
[1644708029740,0.3,2911.7,2910.2,0.1716]
[1644708029939,1.3,2911.7,2910.2,0.1716]
[1644708030140,4.38863753,2911.6,2910.2,0.1716]
[1644708030340,1.0,2911.5,2910.2,0.1716]
[1644708030545,3.79716981,2911.4,2910.2,0.1716]
[1644708030741,1.18075884,2910.7,2910.2,0.1716]
[1644708031441,1.0,2911.3,2910.3,0.01027694]
[1644708031840,1.3,2911.3,2910.3,0.01027694]
[1644708032091,0.01027256,2911.5,2910.3,0.01027694]
[1644708032293,0.495,2911.6,2910.4,0.1716]
[1644708032491,0.84568081,2911.1,2910.7,0.01027647]
[1644708033390,0.84568081,2911.1,2910.2,1.1716]
[1644708033593,0.84568081,2911.1,2910.2,1.4716]
[1644708033791,0.84568081,2911.1,2910.8,0.01027634]
[1644708034796,0.84568081,2911.1,2910.2,0.1716]
[1644708034997,3.35016339,2911.0,2910.8,0.00391249]
[1644708035193,0.84568081,2911.1,2910.8,0.00391249]
[1644708035393,0.84568081,2911.1,2910.2,0.14116481]
[1644708035594,0.84568081,2911.1,2910.1,7.48]
[1644708035836,3.6170607,2911.0,2910.1,7.48]
[1644708036033,3.57764026,2911.0,2910.1,7.48]
[1644708036235,0.1716,2911.0,2910.1,7.48]
[1644708036638,1.04699719,2910.6,2910.1,7.48]
[1644708037239,1.3,2911.3,2910.1,7.48]
[1644708037539,3.71431935,2911.2,2910.1,7.48]
[1644708037941,3.88835174,2911.4,2910.2,0.1716]
[1644708038140,0.93011381,2911.0,2910.2,0.1716]
[1644708038344,3.36560646,2910.9,2910.2,0.1716]
[1644708038542,0.93011381,2911.0,2910.1,7.48]
[1644708039145,0.93011381,2911.0,2910.2,0.1716]
[1644708039592,0.93011381,2911.0,2910.3,0.00303253]
[1644708039788,0.01028188,2910.7,2910.3,0.01331615]
[1644708040790,3.5,2911.4,2910.3,0.00303253]
[1644708040998,1.0,2911.6,2910.3,0.00303253]
[1644708040999,0.01028193,2910.7,2910.3,0.01331593]
[1644708041891,1.00486658,2911.2,2910.3,0.00303253]
[1644708042092,0.01028193,2910.7,2910.3,14.87876353]
[1644708043093,1.00486658,2911.2,2910.3,14.86848013]
[1644708043337,0.01028193,2910.7,2910.3,14.87876353]
[1644708043738,0.90765573,2910.7,2910.3,14.87876353]
[1644708044337,3.52530991,2911.3,2910.3,14.86848013]
[1644708044538,0.00962191,2910.7,2910.3,14.87810342]
[1644708044736,0.00962191,2910.7,2910.4,14.8654476]
[1644708044943,0.00962191,2910.7,2910.3,0.01265582]
[1644708045543,1.17410037,2911.1,2910.3,0.00303253]
[1644708045743,1.17410037,2911.1,2910.4,0.1716]
[1644708045744,0.00962191,2910.7,2910.4,0.1716]
[1644708045945,0.00962191,2910.7,2910.5,0.00303253]
[1644708046146,0.00962191,2910.7,2910.3,0.00962329]
[1644708046744,1.17410037,2911.1,2910.2,0.00303253]
[1644708047008,0.005731,2910.7,2910.2,0.00303253]
[1644708047810,4.28831051,2911.6,2910.3,0.1716]
[1644708048011,1.0,2911.7,2910.4,0.00303253]
[1644708048212,1.3,2911.7,2910.4,0.00303253]
[1644708048412,0.00967972,2910.7,2910.5,0.4292]
[1644708048611,0.00967972,2910.7,2910.6,0.00303253]
[1644708048814,0.00967972,2910.7,2910.6,0.6666]
[1644708049010,0.00967972,2910.7,2910.6,1.02482147]
[1644708049210,0.01193054,2911.8,2910.9,0.85855]
[1644708049415,0.01193054,2911.8,2911.0,0.495]
[1644708049615,0.01193054,2911.8,2911.0,0.66963253]
[1644708049813,0.01193054,2911.8,2911.1,0.00303253]
[1644708050317,1.18113089,2911.8,2911.1,0.00303253]
[1644708050515,0.00967863,2911.6,2911.1,0.00303253]
[1644708051540,1.18113089,2911.8,2911.1,0.00303253]
[1644708051741,0.00966331,2911.5,2911.1,0.00303253]
[1644708052741,1.18113089,2911.8,2911.1,0.00303253]
[1644708052943,1.18113089,2911.8,2911.1,20.06]
[1644708052944,0.00966338,2911.4,2911.1,20.06]
[1644708053144,0.1716,2913.0,2911.3,1.1]
[1644708053343,4.897,2913.6,2911.5,20.06]
[1644708053542,3.5,2913.5,2911.6,0.49803253]
[1644708053745,3.6716,2913.4,2911.7,0.1716]
[1644708053947,3.5,2913.4,2911.8,0.495]
[1644708054143,0.89193583,2912.9,2911.9,0.1716]
[1644708054343,0.89193583,2912.9,2912.0,0.49803253]
[1644708054587,0.89193583,2912.9,2912.1,0.00303253]
[1644708055393,0.00577927,2912.6,2912.1,0.00303253]
[1644708056395,0.89193583,2912.9,2912.1,0.00303253]
[1644708056598,0.00966295,2912.5,2912.1,0.00303253]
[1644708056795,0.00966295,2912.5,2912.0,1.91069]
[1644708057396,0.00966295,2912.5,2911.9,0.00303253]
[1644708057598,3.56937116,2912.8,2911.9,0.00303253]
[1644708057798,0.3,2912.6,2911.7,0.00303253]
[1644708057998,0.00966309,2912.4,2911.4,0.00303253]
[1644708058247,0.1716,2912.3,2911.2,0.00303253]
[1644708059037,0.00965662,2911.9,2911.2,0.00303253]
[1644708059639,1.10949777,2911.9,2911.2,0.00303253]
[1644708059939,1.09984115,2911.9,2911.2,0.00303253]
[1644708060140,1.09984115,2911.9,2911.0,0.00303253]
[1644708060338,0.00965688,2911.7,2911.0,0.00303253]
[1644708060741,1.30965688,2911.7,2911.0,0.00303253]
[1644708061039,4.11726903,2911.6,2910.8,0.00303253]
[1644708061239,4.11726903,2911.6,2910.5,4.02274305]
[1644708061240,4.11726903,2911.6,2910.6,0.00303253]
[1644708061449,0.00965699,2911.5,2910.7,0.00965971]
[1644708061642,1.06509075,2911.3,2910.7,0.00965971]
[1644708062291,1.06509075,2911.3,2910.6,0.00303253]
[1644708062693,1.06509075,2911.3,2910.7,0.00965955]
[1644708063496,1.06509075,2911.3,2910.6,0.00303253]
[1644708063892,3.30026265,2911.2,2910.7,0.00965955]
[1644708064095,3.60425033,2911.2,2910.7,0.00965955]
[1644708064294,0.495,2911.1,2910.7,0.00965955]
[1644708064496,3.53375545,2911.0,2910.7,0.00965955]
[1644708064893,3.53375545,2911.0,2910.6,0.00303253]
[1644708065093,3.53375545,2911.0,2910.7,0.00909842]
[1644708065094,0.3,2910.9,2910.7,0.00909842]
[1644708065294,1.10686061,2910.8,2910.7,0.00909842]
[1644708065937,1.10686061,2910.8,2910.5,0.00303253]
[1644708066138,1.10686061,2910.8,2910.1,0.00303253]
[1644708066336,1.10686061,2910.8,2909.9,0.1716]
[1644708066337,4.47912972,2910.8,2910.6,0.0090985]
[1644708066537,1.10686061,2910.8,2910.6,0.0090985]
[1644708066940,4.47121523,2910.8,2910.6,0.0090985]
[1644708067145,4.5451734,2910.8,2910.6,0.0090985]
[1644708067344,4.46640008,2910.8,2909.9,0.00303253]
[1644708067544,3.35972404,2910.7,2910.6,0.00909855]
[1644708067744,3.35972404,2910.7,2909.6,7.4226]
[1644708067745,1.1,2910.6,2909.6,0.25]